{"text_format":"3","workbook":"xlsx","n_sheets":3,"sheets":["Abrechnungsformular","Abrechnungsformular_plus","Statistik AV"],"not_rendered":{"images":1,"defined_names":2},"read":"whole","date_system":"1900"}

{"sheet":"Abrechnungsformular","index":0,"n_rows":41,"n_cols":13,"rows_kept":41,"merged":[[10,7,10,8],[10,10,10,11],[25,0,25,11],[28,6,28,7],[29,6,29,7],[32,3,32,8],[33,3,33,8],[36,8,36,9]]}
[{"$nulls":12},"Kanton Zürich"]
[{"$nulls":12},"Gemeinde / Stadt"]
[]
["Abrechnungsformular"]
["Gebührenpflichtige Leistungen gemäss Gebührenverordnung für Geodaten vom 30.08.2017 (LS 704.15)"]
[]
["1. Grundpreis",{"$nulls":11},"Fr."]
[" Administration (1 x pro Auftrag)",{"$nulls":6},"Pauschal",1,null,"Preis",{"v":50,"d":"50.00"},{"$f":"I8*L8","v":{"v":50,"d":"50.00"}}]
[]
["2. Grafische Produkte (Plan für das Grundbuch, Katasterplan amtliche Vermessung)"]
[" Format",{"$nulls":6},"Ausschnitte",null,null,"Auflage Papier"]
[{"$nulls":7},"Anzahl","Preis",null,"Anzahl","Preis"]
[" bis A3",{"$nulls":7},{"v":15,"d":"15.00"},null,null,{"v":5,"d":"5.00"},{"$f":"IF(H13>0,H13*I13+K13*L13,0)","v":0}]
[" A2 (42x60)",{"$nulls":7},{"v":30,"d":"30.00"},null,null,{"v":10,"d":"10.00"},{"$f":"IF(H14>0,H14*I14+K14*L14,0)","v":0}]
[" A1 (60x84)",{"$nulls":7},{"v":30,"d":"30.00"},null,null,{"v":20,"d":"20.00"},{"$f":"IF(H15>0,H15*I15+K15*L15,0)","v":0}]
[" A0 (1m²)",{"$nulls":7},{"v":30,"d":"30.00"},null,null,{"v":40,"d":"40.00"},{"$f":"IF(H16>0,H16*I16+K16*L16,0)","v":0}]
[]
["3. Zusatzarbeiten"]
["3.1 Nachträgliche Richtigkeitsbestätigung gemäss § 3 Abs. 1 lit. a der Bauverfahrensverordnung vom 3. Dezember 1997"]
[" 1. Kontrolle von Kundenplänen",{"$nulls":3},"bis A3",null,null,"Anz. Ausschnitte",null,null,"Preis",{"v":100,"d":"100.00"},{"$f":"I20*L20","v":0}]
[" (bis 10 Exemplare)",{"$nulls":3},"grösser A3",null,null,"Anz. Ausschnitte",null,null,"Preis",{"v":150,"d":"150.00"},{"$f":"I21*L21","v":0}]
[" Nachkontrollen von Kundenplänen",{"$nulls":3},"bis A3",null,null,"Anz. Ausschnitte",null,null,"Preis",{"v":80,"d":"80.00"},{"$f":"I22*L22","v":0}]
[" (bis 10 Exemplare)",{"$nulls":3},"grösser A3",null,null,"Anz. Ausschnitte",null,null,"Preis",{"v":100,"d":"100.00"},{"$f":"I23*L23","v":0}]
[{"$nulls":7},"weitere Exemplare pro Ausschnitt",null,null,"Preis",{"v":5,"d":"5.00"},{"$f":"SUM(I20:I21)*I24*L24","v":0}]
[]
["3.2 Beglaubigung gemäss Art. 73a der Technischen Verordnung des VBS über die amtliche Vermessung vom 10. Juni 1994 bzw.\n      § 6 der kantonalen Verordnung über den Kataster der öffentlich-rechtlichen Eigentumsbeschränkungen vom 30. August 2017"]
[" Pläne pro Ausschnitt bzw. Auszug",{"$nulls":6},"1. Exemplar",null,null,"Preis",{"v":50,"d":"50.00"},{"$f":"I27*L27","v":0}]
[{"$nulls":7},"weitere Exemplare",null,null,"Preis",{"v":5,"d":"5.00"},{"$f":"I28*L28","v":0}]
[" Nachträgliche Beglaubigung",{"$nulls":5},"Anz. Std.",{"$nulls":3},"Ansatz",null,{"$f":"I29*L29","v":0}]
[" (gemäss Art. 38 Abs. 2 VAV)",{"$nulls":5},"Anz. Std.",{"$nulls":3},"Ansatz",null,{"$f":"I30*L30","v":0}]
[]
["3.3 Zusätzliche Aufwendungen"]
[" Fremdrechnung ohne MWSt.",{"$nulls":9},"Betrag",null,{"$f":"L33","v":0}]
[" Transportkosten, Verpackung",{"$nulls":9},"Betrag",null,{"$f":"L34","v":0}]
[]
["4. Zusammenfassung"]
[" Summe ohne Pos 3.3",{"$nulls":11},{"$f":"SUM(M8:M30)","v":{"v":50,"d":"50.00"}}]
[" Zusätzliche Aufwendungen (Pos 3.3)",{"$nulls":11},{"$f":"SUM(M33:M34)","v":0}]
[" Total",{"$nulls":11},{"$f":"M37+M38","v":{"v":50,"d":"50.00"}}]
[" Mehrwertsteuer",{"$nulls":10},{"v":0.081,"d":"8.1%"},{"$f":"MROUND(M39*L40,0.05)","v":4.05}]
[" Rechnungstotal",{"$nulls":11},{"$f":"M39+M40","v":54.05}]

{"sheet":"Abrechnungsformular_plus","index":1,"n_rows":59,"n_cols":13,"rows_kept":59,"merged":[[10,7,10,8],[10,10,10,11],[25,0,25,11],[28,6,28,7],[29,6,29,7],[32,3,32,8],[33,3,33,8],[36,8,36,9],[43,1,43,5],[43,6,43,7],[44,1,44,5],[44,6,44,7],[45,1,45,5],[45,6,45,7],[46,1,46,5],[46,6,46,7],[47,3,47,8],[48,3,48,8],[49,8,49,9],[55,8,55,9],[56,8,56,9]]}
[{"$nulls":12},"Kanton Zürich"]
[{"$nulls":12},"Gemeinde / Stadt"]
[]
["Abrechnungsformular"]
["A. Gebührenpflichtige Leistungen gemäss Gebührenverordnung für Geodaten vom 30.08.2017 (LS 704.15)"]
[]
["1. Grundpreis",{"$nulls":11},"Fr."]
[" Administration (1 x pro Auftrag)",{"$nulls":6},"Pauschal",1,null,"Preis",{"v":50,"d":"50.00"},{"$f":"I8*L8","v":{"v":50,"d":"50.00"}}]
[]
["2. Grafische Produkte (Plan für das Grundbuch, Katasterplan amtliche Vermessung)"]
[" Format",{"$nulls":6},"Ausschnitte",null,null,"Auflage Papier"]
[{"$nulls":7},"Anzahl","Preis",null,"Anzahl","Preis"]
[" bis A3",{"$nulls":7},{"v":15,"d":"15.00"},null,null,{"v":5,"d":"5.00"},{"$f":"IF(H13>0,H13*I13+K13*L13,0)","v":0}]
[" A2 (42x60)",{"$nulls":7},{"v":30,"d":"30.00"},null,null,{"v":10,"d":"10.00"},{"$f":"IF(H14>0,H14*I14+K14*L14,0)","v":0}]
[" A1 (60x84)",{"$nulls":7},{"v":30,"d":"30.00"},null,null,{"v":20,"d":"20.00"},{"$f":"IF(H15>0,H15*I15+K15*L15,0)","v":0}]
[" A0 (1m²)",{"$nulls":7},{"v":30,"d":"30.00"},null,null,{"v":40,"d":"40.00"},{"$f":"IF(H16>0,H16*I16+K16*L16,0)","v":0}]
[]
["3. Zusatzarbeiten"]
["3.1 Nachträgliche Richtigkeitsbestätigung gemäss § 3 Abs. 1 lit. a der Bauverfahrensverordnung vom 3. Dezember 1997"]
[" 1. Kontrolle von Kundenplänen",{"$nulls":3},"bis A3",null,null,"Anz. Ausschnitte",null,null,"Preis",{"v":100,"d":"100.00"},{"$f":"I20*L20","v":0}]
[" (bis 10 Exemplare)",{"$nulls":3},"grösser A3",null,null,"Anz. Ausschnitte",null,null,"Preis",{"v":150,"d":"150.00"},{"$f":"I21*L21","v":0}]
[" Nachkontrollen von Kundenplänen",{"$nulls":3},"bis A3",null,null,"Anz. Ausschnitte",null,null,"Preis",{"v":80,"d":"80.00"},{"$f":"I22*L22","v":0}]
[" (bis 10 Exemplare)",{"$nulls":3},"grösser A3",null,null,"Anz. Ausschnitte",null,null,"Preis",{"v":100,"d":"100.00"},{"$f":"I23*L23","v":0}]
[{"$nulls":7},"weitere Exemplare pro Ausschnitt",null,null,"Preis",{"v":5,"d":"5.00"},{"$f":"SUM(I20:I21)*I24*L24","v":0}]
[]
["3.2 Beglaubigung gemäss Art. 73a der Technischen Verordnung des VBS über die amtliche Vermessung vom 10. Juni 1994 bzw.\n      § 6 der kantonalen Verordnung über den Kataster der öffentlich-rechtlichen Eigentumsbeschränkungen vom 30. August 2017"]
[" Pläne pro Ausschnitt bzw. Auszug",{"$nulls":6},"1. Exemplar",null,null,"Preis",{"v":50,"d":"50.00"},{"$f":"I27*L27","v":0}]
[{"$nulls":7},"weitere Exemplare",null,null,"Preis",{"v":5,"d":"5.00"},{"$f":"I28*L28","v":0}]
[" Nachträgliche Beglaubigung",{"$nulls":5},"Anz. Std.",{"$nulls":3},"Ansatz",null,{"$f":"I29*L29","v":0}]
[" (gemäss Art. 38 Abs. 2 VAV)",{"$nulls":5},"Anz. Std.",{"$nulls":3},"Ansatz",null,{"$f":"I30*L30","v":0}]
[]
["3.3 Zusätzliche Aufwendungen"]
[" Fremdrechnung ohne MWSt.",{"$nulls":9},"Betrag",null,{"$f":"L33","v":0}]
[" Transportkosten, Verpackung",{"$nulls":9},"Betrag",null,{"$f":"L34","v":0}]
[]
["4. Zusammenfassung"]
[" Summe ohne Pos 3.3",{"$nulls":11},{"$f":"SUM(M8:M30)","v":{"v":50,"d":"50.00"}}]
[" Zusätzliche Aufwendungen (Pos 3.3)",{"$nulls":11},{"$f":"SUM(M33:M34)","v":0}]
[" Total gebührenpflichtige Leistungen",{"$nulls":11},{"$f":"M37+M38","v":{"v":50,"d":"50.00"}}]
[]
["B. Weitere Leistungen (nicht gemäss Gebührenverordnung für Geodaten)"]
[]
[{"$nulls":12},"Fr."]
[" Arbeit",{"$nulls":5},"Anz. Std.",{"$nulls":3},"Ansatz",null,{"$f":"I44*L44","v":0}]
[" Arbeit",{"$nulls":5},"Anz. Std.",{"$nulls":3},"Ansatz",null,{"$f":"I45*L45","v":0}]
[" Arbeit",{"$nulls":5},"Anz. Std.",{"$nulls":3},"Ansatz",null,{"$f":"I46*L46","v":0}]
[" Arbeit",{"$nulls":5},"Anz. Std.",{"$nulls":3},"Ansatz",null,{"$f":"I47*L47","v":0}]
[" Fremdrechnung ohne MWSt.",{"$nulls":9},"Betrag",null,{"$f":"L48","v":0}]
[" Fremdrechnung ohne MWSt.",{"$nulls":9},"Betrag",null,{"$f":"L49","v":0}]
[" Total weitere Leistungen",{"$nulls":11},{"$f":"SUM(M44:M49)","v":0}]
[]
["C. Zusammenstellung aller Leistungen"]
[]
[{"$nulls":12},"Fr."]
[" Total gebührenpflichtige Leistungen",{"$nulls":11},{"$f":"M39","v":{"v":50,"d":"50.00"}}]
[" Total weitere Leistungen",{"$nulls":11},{"$f":"M50","v":0}]
[" Zwischentotal",{"$nulls":11},{"$f":"M55+M56","v":{"v":50,"d":"50.00"}}]
[" Mehrwertsteuer",{"$nulls":10},{"v":0.081,"d":"8.1%"},{"$f":"MROUND(M57*L58,0.05)","v":4.05}]
[" Rechnungstotal",{"$nulls":11},{"$f":"M57+M58","v":54.05}]

{"sheet":"Statistik AV","index":2,"n_rows":8,"n_cols":4,"rows_kept":8}
["Kanton Zürich"]
["Statistische Angaben über die Planabgaben in der amtlichen Vermessung"]
[]
["Die folgenden Werte können für die Statistik verwendet werden:"]
[]
[null,"Anzahl","Zwischentotal\nexkl. MWSt.","Total\ninkl. MWSt."]
["Grafische Produkte",{"$f":"IF(SUM(Abrechnungsformular!H13:H16)>0,SUM(Abrechnungsformular!H13:H16),SUM(Abrechnungsformular_plus!H13:H16))","v":0},{"$f":"Abrechnungsformular!M8+IF(SUM(Abrechnungsformular!H13:H16)>0,SUM(Abrechnungsformular!M13:M16)+SUM(Abrechnungsformular!M33:M34),SUM(Abrechnungsformular_plus!M13:M16)+SUM(Abrechnungsformular_plus!M33:M34))","v":{"v":50,"d":"50.00"}},{"$f":"MROUND(C7*Abrechnungsformular!L40,0.05)+C7","v":54.05}]
["Richtigkeitsbestätigungen",{"$f":"IF(SUM(Abrechnungsformular!I20:I21)>0,SUM(Abrechnungsformular!I20:I21),SUM(Abrechnungsformular_plus!I20:I21))","v":0},{"$f":"Abrechnungsformular!M8+IF(SUM(Abrechnungsformular!I20:I24)>0,SUM(Abrechnungsformular!M20:M24),SUM(Abrechnungsformular_plus!M20:M24))-IF(B7>0,Abrechnungsformular!M8,0)","v":{"v":50,"d":"50.00"}},{"$f":"MROUND(C8*Abrechnungsformular!L40,0.05)+C8","v":54.05}]